bitfinex/quotes_ETHUSD_20240925
["timestamp","ask_amount","ask_price","bid_price","bid_amount"]
[1727301648710,1.21856805,2586.9,2586.8,5.94996367]
[1727301648910,1.21856805,2586.9,2586.8,5.94997178]
[1727301649652,1.21856805,2586.9,2586.8,5.94996973]
[1727301651461,1.21856805,2586.9,2586.8,5.54539399]
[1727301651754,1.21856805,2586.9,2586.8,6.34209399]
[1727301651927,1.21856805,2587.0,2586.8,6.74672604]
[1727301652129,1.21856805,2587.0,2586.9,0.40463205]
[1727301654072,1.21893371,2587.0,2586.9,0.40463205]
[1727301654366,1.62462756,2587.1,2586.9,0.40463205]
[1727301654541,1.62462756,2587.1,2587.0,1.67961399]
[1727301654961,1.62537899,2587.1,2587.0,1.67961399]
[1727301655157,1.62537317,2587.1,2587.0,1.67961399]
[1727301655972,2.03150082,2587.2,2587.0,1.67961399]
[1727301656771,1.62561089,2587.1,2587.0,1.67961399]
[1727301657133,0.7851,2587.0,2586.7,3.86581]
[1727301657349,2.41071089,2587.0,2586.9,1.67961399]
[1727301657574,2.41071089,2587.0,2586.9,2.08438969]
[1727301658670,2.41071089,2587.0,2586.9,1.67961399]
[1727301658877,2.41071089,2587.0,2586.9,2.08442972]
[1727301659573,2.41071089,2587.0,2586.9,1.67961399]
[1727301660138,2.41071089,2587.0,2586.9,2.08444776]
[1727301662778,0.7851,2587.0,2586.9,1.67961399]
[1727301664200,0.7851,2587.0,2586.9,2.0844837]
[1727301664673,0.7851,2587.0,2586.9,1.67961399]
[1727301665186,2.81740087,2587.0,2586.9,1.67961399]
[1727301667487,2.81739874,2587.0,2586.9,1.67961399]
[1727301672387,2.81712815,2587.0,2586.9,1.67961399]
[1727301674203,7.73737896,2587.0,2586.5,8.55896]
[1727301674376,1.21916748,2586.8,2586.6,1.05274266]
[1727301674705,1.21916748,2586.8,2586.7,0.40490102]
[1727301674910,6.67100815,2586.8,2586.4,1.67961399]
[1727301675068,1.21936188,2586.5,2586.4,1.67961399]
[1727301675270,1.21936188,2586.5,2586.4,2.08462353]
[1727301676311,1.21936188,2586.5,2586.4,1.67961399]
[1727301676614,1.21936188,2586.5,2586.4,2.08463047]
[1727301677207,1.21936188,2586.5,2586.4,1.67961399]
[1727301677891,1.21936188,2586.5,2586.4,2.08453399]
[1727301678114,1.21936188,2586.5,2586.4,1.67961399]
[1727301680124,1.21936188,2586.6,2586.4,1.67961399]
[1727301688229,1.21936188,2586.6,2586.5,1.67961399]
[1727301688437,2.35437165,2586.6,2586.5,1.67961399]
[1727301689319,3.17897165,2586.6,2586.5,1.67961399]
[1727301689990,7.04504165,2586.6,2586.5,1.67961399]
[1727301693438,7.45149561,2586.6,2586.5,1.67961399]
[1727301698845,3.86652,2586.3,2586.2,0.0369789]
[1727301699226,5.94383028,2586.3,2586.2,0.0369789]
[1727301699646,5.84716095,2586.3,2586.2,0.0369789]
[1727301700239,4.63042,2586.3,2586.2,0.0369789]
[1727301700435,5.84716095,2586.3,2586.2,0.0369789]
[1727301700638,7.21087247,2586.3,2586.2,0.0369789]
[1727301700843,5.99413152,2586.3,2586.2,0.0369789]
[1727301701040,7.21087247,2586.3,2586.2,0.0369789]
[1727301702157,5.99413152,2586.3,2586.2,0.0369789]
[1727301702557,7.21087247,2586.3,2586.2,0.0369789]
[1727301703069,7.61645729,2586.3,2586.2,0.0369789]
[1727301703234,7.11374974,2586.3,2586.2,0.0369789]
[1727301704664,5.89746227,2586.3,2586.2,0.0369789]
[1727301705364,7.11356642,2586.3,2586.2,0.0369789]
[1727301705537,5.89746227,2586.3,2586.2,0.0369789]
[1727301706130,7.11351747,2586.3,2586.2,0.0369789]
[1727301706336,5.89746227,2586.3,2586.2,0.0369789]
[1727301706538,7.11352536,2586.3,2586.2,0.0369789]
[1727301706871,11.10348354,2586.3,2586.2,0.0369789]
[1727301707165,11.5086958,2586.3,2586.2,0.0369789]
[1727301707528,9.48116227,2586.3,2586.2,0.0369789]
[1727301709154,11.91420251,2586.3,2586.2,0.0369789]
[1727301709354,9.48116227,2586.3,2586.2,0.0369789]
[1727301709933,11.91420251,2586.3,2586.2,0.0369789]
[1727301710431,9.48116227,2586.3,2586.2,0.0369789]
[1727301711731,11.16077626,2586.3,2586.2,0.0369789]
[1727301711930,12.08755451,2586.3,2586.2,0.0369789]
[1727301712455,15.96698101,2586.3,2586.2,0.0369789]
[1727301712658,26.35647301,2586.3,2586.2,0.0369789]
[1727301712862,24.44969825,2586.3,2586.2,0.0369789]
[1727301713237,24.65025188,2586.3,2586.2,0.0369789]
[1727301713436,6.69067,2585.6,2585.5,0.0369789]
[1727301713668,10.24067,2585.6,2585.5,0.0369789]
[1727301714483,12.66712399,2585.6,2585.5,0.0369789]
[1727301714682,19.93645326,2585.6,2585.5,0.0369789]
[1727301714831,21.61606725,2585.6,2585.5,0.0369789]
[1727301715177,24.64271548,2585.6,2585.5,0.0369789]
[1727301715358,10.18217,2584.8,2584.7,0.0369789]
[1727301715667,13.47620349,2584.8,2584.7,0.0369789]
[1727301715849,11.86178399,2584.8,2584.7,0.0369789]
[1727301716042,13.63662583,2584.8,2584.7,0.0369789]
[1727301716376,15.24947928,2584.8,2584.7,0.0369789]
[1727301717134,14.84533266,2584.8,2584.7,0.0369789]
[1727301717837,11.95701184,2584.8,2584.7,0.0369789]
[1727301719088,13.16571867,2584.8,2584.7,0.0369789]
[1727301719295,13.16571867,2584.8,2583.9,0.0369789]
[1727301719296,7.64156,2584.0,2583.9,0.0369789]
[1727301719776,9.32117399,2584.0,2583.9,0.0369789]
[1727301720381,9.32117399,2584.0,2581.2,9.60689258]
[1727301720382,3.87176,2582.8,2582.7,0.7863]
[1727301720607,3.87176,2582.8,2582.7,0.0261289]
[1727301720873,3.87147,2583.0,2582.7,0.0261289]
[1727301721059,3.87164,2582.9,2582.7,0.0261289]
[1727301721758,3.87131,2583.1,2582.8,1.67961399]
[1727301722082,1.67961399,2583.9,2582.7,0.0261289]
[1727301722083,3.87079,2583.5,2583.1,0.7637]
[1727301722377,3.87079,2583.5,2583.2,3.65402982]
[1727301722736,6.87048,2583.7,2583.2,3.65402982]
[1727301723043,3.87072,2583.5,2583.2,3.65402982]
[1727301723240,6.8707,2583.6,2583.2,3.65402982]
[1727301723451,3.0,2583.6,2583.2,4.51168759]
[1727301723867,3.87048,2583.7,2583.2,4.51168759]
[1727301725987,3.86985,2584.1,2583.6,0.8016]
[1727301726281,3.87017,2583.9,2583.6,0.8016]
[1727301729743,6.86998,2584.0,2583.6,0.8016]
[1727301730274,3.86991,2584.1,2583.6,0.8016]
[1727301731059,0.55,2584.2,2583.8,3.65402982]
[1727301731279,0.55,2584.2,2583.8,4.4866338]
[1727301731280,3.8699,2584.1,2583.8,4.4866338]
[1727301731513,3.8699,2584.1,2583.8,3.65402982]
[1727301731953,6.86938,2584.4,2583.9,4.6707]
[1727301732377,3.0,2584.4,2583.9,8.5408]
[1727301732543,3.0,2584.4,2583.9,4.6707]
[1727301732745,3.0,2584.4,2583.9,9.76023498]
[1727301732944,3.0,2584.4,2583.9,9.76015498]
[1727301733139,3.0,2584.4,2583.9,5.89012498]
[1727301733771,3.0,2584.4,2584.2,0.7777]
[1727301733972,7.73802,2584.7,2584.2,0.7777]
[1727301734285,3.86925,2584.5,2584.2,0.7777]
[1727301734656,3.86913,2584.6,2584.2,0.7777]
[1727301734846,3.86913,2584.6,2584.2,1.60785398]
[1727301735275,3.86901,2584.7,2584.2,1.60785398]
[1727301735491,3.86901,2584.7,2584.2,5.47751398]
[1727301735784,6.86868,2584.9,2584.2,5.47751398]
[1727301735785,3.86868,2584.9,2584.5,0.8029]
[1727301735987,3.86701,2586.0,2584.7,3.65402982]
[1727301735988,3.8681,2585.3,2584.7,3.65402982]
[1727301736166,3.8681,2585.3,2585.0,3.65402982]
[1727301736361,3.8681,2585.3,2585.1,0.7679]
[1727301736703,3.86902,2584.7,2584.4,0.7679]
[1727301737276,3.86841,2585.1,2584.6,0.7679]
[1727301737591,3.86685,2586.1,2583.7,3.0]
[1727301737592,3.86698,2586.0,2585.1,0.7611]
[1727301737755,3.86713,2585.9,2585.6,3.65402982]
[1727301738544,3.86687,2586.1,2585.6,3.65402982]
[1727301738995,3.86687,2586.1,2585.6,4.45182982]
[1727301739201,3.86699,2586.0,2585.6,4.45182982]
[1727301740089,3.86727,2585.8,2585.0,3.86837]
[1727301740260,3.86766,2585.6,2585.1,4.41022982]
[1727301740463,3.86776,2585.5,2585.1,4.41022982]
[1727301740663,3.86801,2585.4,2585.1,4.41022982]
[1727301741350,0.39923565,2585.7,2585.1,4.41022982]
[1727301741351,0.0113715,2585.7,2585.1,4.41022982]
[1727301741550,0.0113715,2585.7,2585.5,3.65402982]
[1727301742651,0.0113715,2585.7,2585.6,0.7577]
[1727301744059,0.0113715,2585.7,2585.6,4.62527]
[1727301744289,0.0113715,2585.7,2585.6,0.7577]
[1727301744588,0.0113715,2585.7,2585.6,4.62527]
[1727301745376,0.0113715,2585.7,2585.6,0.7577]
[1727301747850,0.0113715,2585.7,2585.6,5.087825]
[1727301748067,0.0113715,2585.7,2585.6,4.62527]
[1727301749567,0.0113715,2585.7,2585.6,0.7577]
[1727301750191,3.8788815,2585.7,2585.3,0.752]
[1727301750495,4.56676965,2585.7,2585.3,0.752]
[1727301750654,0.0113715,2585.7,2585.5,3.65402982]
[1727301751391,0.0113715,2585.7,2585.6,3.86757]
[1727301752259,0.0113715,2585.7,2585.6,0.8038]
[1727301753716,0.0113715,2585.7,2585.2,7.73608]
[1727301753717,3.8789115,2585.7,2585.3,0.8038]
[1727301754380,3.86766,2585.6,2585.2,3.65402982]
[1727301754582,3.86788,2585.4,2585.1,0.8038]
[1727301754766,3.96431955,2585.6,2585.1,0.8038]
[1727301754767,3.86763,2585.6,2585.1,0.8038]
[1727301754964,3.86763,2585.6,2585.2,7.52219982]
[1727301755259,3.86763,2585.6,2585.2,3.65402982]
[1727301755870,3.0113715,2585.7,2585.3,3.868]
[1727301756407,0.0113715,2585.7,2585.3,3.868]
[1727301757007,0.0113715,2585.7,2585.6,4.65297]
[1727301759900,0.0113715,2585.7,2585.6,8.30699982]
[1727301760102,0.0375004,2586.5,2585.6,8.30699982]
[1727301760103,0.0375004,2586.5,2586.0,3.86686]
[1727301760393,0.0375004,2586.5,2586.3,3.65402982]
[1727301760775,3.86649,2586.4,2585.8,4.69221]
[1727301760994,3.86649,2586.4,2586.0,3.65402982]
[1727301761167,0.0375004,2586.5,2586.0,7.52094982]
[1727301761874,0.0375004,2586.5,2586.3,4.43022982]
[1727301762500,0.0375004,2586.5,2586.3,8.29663982]
[1727301762665,0.0375004,2586.5,2586.4,3.86637]
[1727301763898,0.0375004,2586.5,2586.4,4.68667]
[1727301766909,0.0375004,2586.5,2586.4,4.76317521]
[1727301767099,0.0375004,2586.5,2586.4,5.99153671]
[1727301767534,0.0375004,2586.5,2586.4,5.9150315]
[1727301767834,0.0375004,2586.5,2586.4,5.99160829]
[1727301768397,0.0375004,2586.5,2586.4,5.9150315]
[1727301770535,0.0375004,2586.5,2586.4,2.0486615]
[1727301770828,0.0375004,2586.5,2586.4,8.34069982]
[1727301772134,0.0375004,2587.3,2586.9,4.68469]
[1727301772291,0.0375004,2587.3,2587.0,3.65402982]
[1727301772691,0.0375004,2587.3,2587.0,7.51949982]
[1727301772898,0.0375004,2587.3,2587.0,8.7399188]
[1727301773323,0.0375004,2587.3,2587.0,4.8744488]
[1727301773819,3.86527,2587.2,2586.7,8.33383982]
[1727301775021,3.86563,2586.9,2586.4,3.86629]
[1727301775222,4.68843,2587.1,2586.5,3.86621]
[1727301775428,3.86548,2587.0,2586.5,3.86621]
[1727301776326,4.68843,2587.1,2586.6,3.65402982]
[1727301776529,4.6599104,2587.3,2586.8,3.86567]
[1727301776735,4.6599104,2587.3,2586.9,0.07671602]
[1727301777036,4.6599104,2587.3,2586.6,3.86598]
[1727301777037,3.8654,2587.1,2586.6,3.86598]
[1727301777833,3.8654,2587.1,2586.6,7.73193]
[1727301778050,0.7573,2587.2,2586.7,3.86582]
[1727301778210,0.0375004,2587.3,2586.8,4.67624737]
[1727301778410,3.9025304,2587.3,2586.8,4.63853]
[1727301778613,3.86535,2587.1,2586.7,3.65402982]
[1727301778834,3.86535,2587.1,2586.6,4.63889]
[1727301779141,3.86535,2587.1,2586.6,8.50487]
[1727301779625,3.86535,2587.1,2586.6,4.63888]
[1727301779825,3.86535,2587.1,2586.7,3.86592]
[1727301780764,3.86535,2587.1,2586.6,4.63888]
[1727301780932,3.86535,2587.1,2586.6,8.50488]
[1727301781261,8.23885344,2587.3,2586.7,3.86589]
[1727301781444,3.86521,2587.2,2586.7,3.86589]
[1727301781645,3.9025404,2587.3,2586.7,3.86589]
[1727301781847,7.7676704,2587.3,2586.7,3.86589]
[1727301782019,0.0375004,2587.3,2587.0,3.86545]
[1727301782222,0.0375004,2587.3,2587.1,0.386545]
[1727301782422,0.0375004,2587.3,2587.2,3.86518]
[1727301782647,0.0375004,2587.3,2587.2,3.94186459]
[1727301782857,0.8234,2587.6,2587.2,3.86518]
[1727301783031,0.0316356,2587.3,2587.2,3.94186443]
[1727301783238,0.0316356,2587.3,2587.2,7.59589425]
[1727301783450,0.0316356,2587.3,2587.2,4.91746575]
[1727301784333,0.0316356,2587.3,2587.2,8.78264575]
[1727301786537,0.0316356,2587.3,2587.2,4.91746575]
[1727301786739,0.0316356,2587.3,2586.8,8.34807982]
[1727301786944,0.0316356,2587.3,2586.9,3.86559]
[1727301787665,0.0316356,2587.3,2586.8,8.34800982]
[1727301787865,0.0316356,2587.3,2586.9,3.86553]
[1727301789777,0.0316356,2587.3,2587.0,3.86547]
[1727301791427,0.0316356,2587.3,2587.1,3.86532]
[1727301791631,0.0316356,2587.3,2587.1,7.51934982]
[1727301792038,0.0316356,2587.3,2587.2,3.86518]
[1727301793606,0.0316356,2587.3,2587.2,4.69728]
[1727301794505,0.0316356,2587.3,2587.0,3.65402982]
[1727301794506,0.0316356,2587.3,2587.0,7.51940982]
[1727301794646,0.0316356,2587.3,2586.9,4.48612982]
[1727301795061,0.0316356,2587.3,2586.9,5.3213158]
[1727301795253,0.0316356,2587.3,2587.0,3.86538]
[1727301796107,0.0316356,2587.3,2587.0,7.73072]
[1727301796277,0.0316356,2587.3,2587.0,3.86534]
[1727301796479,0.0316356,2587.3,2587.0,7.73074]
[1727301796669,0.0316356,2587.3,2587.0,3.86534]
[1727301796869,0.8389356,2587.3,2587.0,7.73071]
[1727301797066,0.8389356,2587.3,2587.0,3.86534]
[1727301797478,0.8389356,2587.3,2587.0,7.73072]
[1727301797681,0.8389356,2587.3,2587.1,3.86532]
[1727301800301,0.0316356,2587.3,2587.0,3.86534]
[1727301800507,0.0316356,2587.3,2587.2,7.51920982]
[1727301800681,0.0316356,2587.3,2587.2,4.68118]
[1727301800882,0.0316356,2587.3,2587.2,3.86518]
[1727301801410,0.0316356,2587.3,2587.1,3.86524]
[1727301802297,0.0316356,2587.3,2587.2,3.88862213]
[1727301802492,0.0316356,2587.3,2587.2,3.86518]
[1727301802804,0.0316356,2587.3,2587.2,3.94186504]
[1727301803195,0.0316356,2587.3,2587.2,3.86518]
[1727301806237,0.0316356,2587.3,2587.0,3.65402982]
[1727301806733,0.0316356,2587.3,2587.1,3.8653]
[1727301807084,0.0316356,2587.3,2587.0,3.65402982]
[1727301807199,0.0316356,2587.3,2586.7,4.43662982]
[1727301807200,0.7957,2587.2,2586.7,4.43662982]
[1727301807392,0.42129016,2587.3,2586.7,4.43662982]
[1727301807393,0.0316356,2587.3,2587.0,7.51941982]
[1727301807626,0.0316356,2587.3,2587.2,3.86518]
[1727301807830,0.0316356,2587.3,2587.1,3.86533]
[1727301807993,0.0316356,2587.3,2587.1,7.73057]
[1727301808190,0.0316356,2587.3,2587.1,3.86524]
[1727301808431,0.0316356,2587.3,2587.2,3.86518]
[1727301808732,0.0316356,2587.3,2587.2,5.90710697]
[1727301808936,0.0316356,2587.3,2587.2,5.83042498]
[1727301811246,0.0316356,2587.3,2587.2,5.00362498]
[1727301811453,0.0316356,2587.3,2587.0,7.51940982]
[1727301811642,0.0316356,2587.3,2587.1,3.86532]
[1727301812324,0.0316356,2587.3,2587.2,0.06339641]
[1727301813414,0.0316356,2587.3,2587.0,3.65402982]
[1727301813640,0.0316356,2587.3,2586.7,7.51983982]
[1727301813641,4.65268,2587.2,2586.7,7.51983982]
[1727301813846,4.65268,2587.2,2586.7,11.38567982]
[1727301813847,5.8591983,2587.2,2586.7,11.38567982]
[1727301814156,5.8908339,2587.2,2586.7,12.73225138]
[1727301814596,5.8908339,2587.2,2586.7,12.73226138]
[1727301814710,0.8191356,2587.2,2586.9,3.8656]
[1727301814909,0.8191356,2587.2,2586.7,12.73225138]
[1727301815110,3.86535,2587.1,2586.7,7.51983982]
[1727301815348,5.8908639,2587.2,2586.7,3.65402982]
[1727301815857,3.86548,2587.0,2586.7,3.65402982]
[1727301816047,2.0256539,2587.2,2586.9,3.65402982]
[1727301816350,2.0256539,2587.2,2587.1,3.65402982]
[1727301816540,0.8191356,2587.2,2587.1,3.65402982]
[1727301817254,0.8191356,2587.2,2586.9,7.51962982]
[1727301817549,2.0256539,2587.2,2587.1,3.65402982]
[1727301817750,0.8191356,2587.2,2587.1,3.65402982]
[1727301818613,4.6843156,2587.2,2586.8,3.65402982]
[1727301818817,0.8191356,2587.2,2586.8,7.51975982]
[1727301819018,3.86543,2587.1,2586.8,3.65402982]
[1727301819324,5.1035839,2587.1,2586.8,3.65402982]
[1727301819654,8.9690239,2587.1,2586.8,3.65402982]
[1727301819955,0.7783,2587.0,2586.3,7.52040982]
[1727301820256,0.7783,2586.7,2586.3,7.52040982]
[1727301820840,0.7783,2586.7,2586.5,3.65402982]
[1727301821028,6.28355399,2587.0,2586.5,11.38637982]
[1727301821029,0.7975,2586.9,2586.5,11.38637982]
[1727301821238,0.7975,2586.9,2586.7,3.65402982]
[1727301822695,0.7975,2586.9,2586.5,7.52014982]
[1727301823301,0.7975,2586.9,2586.5,3.65402982]
[1727301823604,0.7975,2586.9,2586.5,7.52023982]
[1727301824195,0.7975,2586.9,2586.5,3.65402982]
[1727301824364,5.8696883,2586.9,2586.3,7.52043982]
[1727301824566,5.8696883,2586.9,2586.3,3.65402982]
[1727301824567,3.86632,2586.5,2586.3,3.65402982]
[1727301824791,0.8072,2586.8,2586.1,3.65402982]
[1727301824792,0.8072,2586.4,2586.1,3.65402982]
[1727301825261,0.8072,2586.4,2585.9,3.65402982]
[1727301825460,0.8072,2586.4,2586.0,3.86694]
[1727301825659,2.0144183,2586.6,2586.3,3.65402982]
[1727301825943,0.8079,2586.6,2586.4,0.75206798]
[1727301826215,0.8079,2586.6,2586.3,7.52054982]
[1727301826776,0.8079,2586.6,2586.3,3.65402982]
[1727301827581,4.67398,2586.6,2586.3,3.65402982]
[1727301828003,4.67398,2586.6,2585.9,3.65402982]
[1727301828189,8.54017,2586.6,2586.0,4.23223298]
[1727301828390,5.0724483,2586.7,2586.5,3.65402982]
[1727301828605,0.7992,2586.6,2586.3,3.65402982]
[1727301828777,0.7992,2586.6,2586.1,3.86668]
[1727301828778,3.86623,2586.5,2586.1,3.65402982]
[1727301830001,3.86648,2586.4,2585.9,3.65402982]
[1727301830176,0.8298,2586.3,2585.7,3.65402982]
[1727301830379,0.8298,2586.3,2585.9,7.52111982]
[1727301830931,3.86667,2586.2,2585.7,4.30910298]
[1727301831084,0.8298,2586.3,2585.8,3.86725]
[1727301831416,0.8298,2586.3,2586.1,3.65402982]
[1727301831774,0.8298,2586.3,2585.9,3.86702]
[1727301831775,0.8298,2586.3,2585.9,7.52104982]
[1727301833419,4.69633,2586.3,2585.9,3.65402982]
[1727301833622,0.8298,2586.3,2585.9,3.65402982]
[1727301834683,4.69632,2586.3,2585.9,3.65402982]
[1727301835236,0.856277,2586.3,2585.9,3.65402982]
[1727301835519,3.86727,2585.8,2585.3,3.86792]
[1727301835735,3.96395728,2585.8,2585.2,7.52218982]
[1727301835880,3.96395728,2585.8,2585.3,0.75222598]
[1727301835881,0.7903,2585.7,2585.3,0.75222598]
[1727301836077,3.96395728,2585.8,2584.8,3.8742745]
[1727301836078,0.7623,2585.3,2584.8,0.0055345]
[1727301836323,0.7623,2585.3,2585.1,3.8683]
[1727301836687,0.7623,2585.3,2585.0,3.65402982]
[1727301836992,0.7623,2585.3,2585.0,4.79368625]
[1727301837618,4.63044,2585.3,2585.0,1.13965643]
[1727301837790,0.7623,2585.3,2584.8,3.65956432]
[1727301838193,3.86819,2585.2,2584.8,3.65956432]
[1727301838419,0.7623,2585.3,2584.8,3.65956432]
[1727301838726,0.7623,2585.3,2584.9,3.8686]
[1727301838931,4.63043,2585.3,2584.8,3.65956432]
[1727301839084,0.7623,2585.3,2584.8,4.45095118]
[1727301839422,3.86822,2585.2,2584.8,4.45095118]
[1727301839593,3.86835,2585.1,2584.8,0.0055345]
[1727301839796,3.86862,2584.9,2584.8,0.0055345]
[1727301840111,4.75070057,2585.0,2584.8,0.0055345]
[1727301840419,0.7855,2585.0,2584.8,3.65956432]
[1727301840602,3.0,2585.2,2584.8,4.45096318]
[1727301840603,0.791,2585.2,2584.8,4.45096318]
[1727301840797,0.791,2585.2,2584.8,3.65956432]
[1727301841423,4.64322,2584.9,2584.8,3.65956432]
[1727301841634,5.162542,2584.9,2584.8,0.0055345]
[1727301841808,0.7746,2584.9,2584.8,0.0055345]
[1727301843143,3.86825,2585.2,2584.8,3.65956432]
[1727301843144,4.67785,2585.2,2584.8,3.65956432]
[1727301843841,4.67785,2585.2,2584.8,0.0055345]
[1727301844041,3.8685,2585.0,2584.8,0.0055345]
[1727301844599,7.7371,2585.0,2584.8,0.0055345]
[1727301845040,5.30134188,2584.9,2584.8,0.0055345]
[1727301845346,8.20462,2584.9,2584.8,0.0055345]
[1727301851668,11.85864982,2584.9,2584.8,0.0055345]
[1727301851959,13.6313648,2584.9,2584.8,0.0055345]
[1727301852422,14.03386602,2584.9,2584.8,0.0055345]
[1727301852624,14.03386602,2584.9,2584.1,0.0371701]
[1727301852625,7.17066,2584.2,2584.1,0.0371701]
[1727301852842,30.0851255,2584.2,2584.1,0.0371701]
[1727301853024,33.48059105,2584.2,2584.1,0.0371701]
[1727301854830,31.48059105,2584.2,2584.1,0.0371701]
[1727301856615,37.13462087,2584.2,2584.1,0.0371701]
[1727301857461,33.48059105,2584.2,2584.1,0.0371701]
[1727301858642,31.48059105,2584.2,2584.1,0.0371701]
[1727301858830,33.48059105,2584.2,2584.1,0.0371701]
[1727301859032,31.48059105,2584.2,2584.1,0.0371701]
[1727301861320,11.01612555,2584.2,2584.1,0.0371701]
[1727301861555,7.62066,2584.2,2584.1,0.0371701]
[1727301862544,8.17066,2584.2,2584.1,0.0371701]
[1727301863660,8.57367791,2584.2,2584.1,0.0371701]
[1727301865087,8.57367791,2584.2,2582.4,3.87234]
[1727301865088,3.87206,2582.6,2581.9,3.87303]
[1727301865281,3.87206,2582.6,2581.7,4.6964301]
[1727301865282,3.87206,2582.6,2582.3,0.7859]
[1727301865283,0.587206,2582.6,2582.3,0.7859]
[1727301865486,3.87206,2582.6,2582.3,0.7859]
[1727301865782,8.24196,2582.6,2581.7,0.0371701]
[1727301865981,7.42206,2582.6,2582.2,0.7712]
[1727301866685,3.87206,2582.6,2582.2,0.7712]
[1727301866884,3.87192,2582.7,2582.2,0.7712]
[1727301867396,3.87206,2582.6,2582.2,0.7712]
[1727301867955,6.87169,2582.9,2582.2,8.29785982]
[1727301868165,0.55,2582.8,2582.2,8.29785982]
[1727301868483,3.87196,2582.7,2582.2,8.29785982]
[1727301868981,4.4219,2582.8,2582.2,12.17043982]
[1727301869186,4.4219,2582.8,2582.2,8.29780982]
[1727301869343,3.87185,2582.8,2582.4,3.65402982]
[1727301870381,3.87153,2583.0,2582.4,7.52628982]
[1727301870590,3.87169,2582.9,2582.4,7.52628982]
[1727301870889,3.87153,2583.0,2582.4,7.52628982]
[1727301871466,3.8712,2583.2,2582.6,0.8125]
[1727301871671,0.55,2583.1,2582.6,4.68454]
[1727301871902,3.0,2583.4,2582.9,3.65402982]
[1727301872127,7.36,2583.5,2583.0,0.8125]
[1727301872269,4.90708,2583.3,2583.0,0.8125]
[1727301872664,3.87118,2583.2,2583.0,0.8125]
[1727301873208,3.87118,2583.2,2582.6,11.39794982]
[1727301873209,3.87117,2583.2,2582.6,0.768]
[1727301873363,1.036,2583.3,2582.6,0.768]
[1727301873364,4.036,2583.3,2582.6,4.63992]
[1727301873568,3.87095,2583.4,2582.8,7.52570982]
[1727301873769,3.87095,2583.4,2582.9,0.7868]
[1727301874412,3.87095,2583.4,2582.9,4.65833]
[1727301874720,7.36,2583.5,2583.2,3.87115]
[1727301874908,3.87057,2583.6,2583.2,0.7868]
[1727301875280,3.87072,2583.5,2583.2,0.7868]
[1727301875483,3.87057,2583.6,2583.2,0.7868]
[1727301877411,4.42043,2583.7,2583.2,4.65796]
[1727301877573,3.87093,2583.4,2583.2,0.7868]
[1727301877970,7.74136,2583.6,2583.2,0.7868]
[1727301878212,3.87066,2583.6,2583.2,0.7868]
[1727301878376,7.74133,2583.6,2583.2,0.7868]
[1727301878611,4.8127007,2583.6,2583.2,0.7868]
[1727301879400,4.90946544,2583.6,2583.2,0.7868]
[1727301879798,3.0,2583.9,2583.2,0.7868]
[1727301880003,0.55,2583.8,2583.2,4.65786]
[1727301880245,4.42028,2583.8,2583.2,0.7868]
[1727301880397,4.42066,2583.6,2583.2,0.7868]
[1727301882101,0.09677472,2583.5,2583.2,0.7868]
[1727301882537,3.96758472,2583.5,2583.2,0.7868]
[1727301882750,3.9677251,2583.4,2582.9,0.7791]
[1727301883040,0.83885351,2583.4,2582.9,0.7791]
[1727301883242,0.83885351,2583.4,2583.0,3.87145]
[1727301883800,0.83885351,2583.4,2583.0,3.87137]
[1727301884000,0.55,2583.6,2583.1,7.74252]
[1727301884201,0.55,2583.6,2583.1,3.87122]
[1727301884500,0.55,2583.6,2583.2,3.87114]
[1727301884706,0.55,2583.6,2583.1,3.87122]
[1727301884898,4.4206,2583.6,2583.1,3.87122]
[1727301885102,0.55,2583.6,2583.1,3.87122]
[1727301885301,0.55,2583.6,2583.2,3.87116]
[1727301885732,0.8331,2583.8,2583.4,0.7816]
[1727301885733,3.0,2583.8,2583.4,0.7816]
[1727301885914,3.87,2584.0,2583.4,4.43562982]
[1727301886110,5.272892,2584.0,2583.4,4.43562982]
[1727301886546,5.272892,2584.0,2583.5,3.87063]
[1727301887004,3.86978,2584.2,2583.7,3.87033]
[1727301887205,3.86978,2584.2,2583.1,3.87126]
[1727301887206,0.7607,2584.4,2583.8,0.7825]
[1727301887523,3.87,2584.0,2583.8,0.7825]
[1727301887727,3.86989,2584.1,2583.8,0.7825]
[1727301890044,0.55,2584.2,2583.8,0.7825]
[1727301890243,0.55,2584.2,2583.8,4.65269]
[1727301890954,3.86939,2584.4,2583.8,0.7825]
[1727301891160,3.86946,2584.4,2583.9,3.87003]
[1727301891449,3.86955,2584.3,2583.8,4.65272]
[1727301893141,3.55,2584.5,2583.9,7.52399982]
[1727301893735,3.0,2584.5,2584.2,0.7836]
[1727301894245,11.22918,2584.6,2584.2,0.7836]
[1727301894857,3.8693,2584.5,2584.2,0.7836]
[1727301895005,4.643148,2584.5,2584.2,0.7836]
[1727301895203,3.86938,2584.4,2584.2,0.7836]
[1727301895408,0.773848,2584.5,2584.2,0.7836]
[1727301895659,3.86917,2584.6,2584.2,0.7836]
[1727301895836,3.86925,2584.5,2584.2,0.7836]
[1727301897422,3.86917,2584.6,2584.2,0.7836]
[1727301897848,1.2065183,2584.7,2584.2,0.7836]
[1727301898051,3.0,2584.7,2584.3,3.86948]
[1727301898560,3.0,2584.7,2584.2,8.30726982]
[1727301898561,6.86894,2584.7,2584.2,8.30726982]
[1727301898708,3.86886,2584.8,2584.3,3.86946]
[1727301899150,3.86892,2584.7,2584.2,9.5249668]
[1727301899347,3.86886,2584.8,2584.2,9.5248668]
[1727301899555,3.86886,2584.8,2584.2,13.3944368]
[1727301899929,3.86886,2584.8,2584.3,3.8695]
[1727301900462,0.55,2584.9,2584.3,1.33943668]
[1727301900629,3.86885,2584.8,2584.2,0.7836]
[1727301900830,3.86885,2584.8,2584.4,4.41242982]
[1727301901242,4.41857,2585.0,2584.4,8.28166982]
[1727301901445,11.5665183,2585.1,2584.4,8.28166982]
[1727301901446,14.22839,2585.1,2584.5,3.86911]
[1727301901777,14.22839,2585.1,2584.4,4.41242982]
[1727301901778,3.86855,2585.0,2584.4,9.1542531]
[1727301902481,3.86877,2584.8,2584.4,0.7584]
[1727301902677,3.86857,2585.0,2584.4,4.41242982]
[1727301902877,10.36,2585.1,2584.5,3.86907]
[1727301903039,14.22833,2585.1,2584.6,4.67196]
[1727301903237,14.22833,2585.1,2584.6,0.8029]